bitfinex/quotes_ETHUSD_20251117
["timestamp","ask_amount","ask_price","bid_price","bid_amount"]
[1763338048219,0.31860842,3106.8,3105.3,0.1901]
[1763338048425,0.4269,3107.0,3105.4,0.476]
[1763338048831,0.4269,3107.0,3104.8,0.476]
[1763338048832,0.405504,3106.6,3104.8,0.476]
[1763338049035,1.5392448,3106.9,3104.8,0.476]
[1763338049231,0.29934737,3106.8,3104.8,0.476]
[1763338049562,0.405504,3104.8,3103.8,0.1901]
[1763338049871,0.405504,3104.8,3103.0,0.476]
[1763338050074,0.4269,3104.7,3103.1,0.1901]
[1763338050276,0.4269,3104.7,3103.1,0.6661]
[1763338050626,0.405504,3104.8,3103.2,0.476]
[1763338051276,1.1337408,3104.6,3102.4,0.001]
[1763338051441,3.57834587,3104.5,3102.4,0.001]
[1763338051632,1.64286021,3104.3,3102.4,0.477]
[1763338051827,0.405504,3104.2,3102.4,0.477]
[1763338052052,0.832404,3104.2,3102.4,0.477]
[1763338052251,3.5700654,3104.2,3102.4,0.477]
[1763338052563,1.1337408,3104.3,3102.4,0.477]
[1763338052564,0.405504,3104.0,3102.4,0.477]
[1763338052938,0.405504,3103.8,3102.4,0.477]
[1763338053143,0.1727,3102.5,3102.4,0.001]
[1763338053475,0.578204,3102.5,3102.4,0.001]
[1763338053932,0.405504,3102.7,3102.4,0.001]
[1763338054468,0.405504,3103.0,3102.4,0.001]
[1763338055147,0.832404,3103.0,3102.4,0.001]
[1763338055365,0.405504,3103.0,3102.4,0.001]
[1763338055550,0.832404,3103.0,3102.4,0.001]
[1763338056029,0.405504,3103.0,3102.4,0.001]
[1763338057345,0.405504,3102.8,3102.4,0.001]
[1763338057965,0.1727,3103.1,3102.0,0.001]
[1763338057966,0.405504,3102.6,3102.0,0.001]
[1763338058348,0.405504,3102.4,3102.0,0.001]
[1763338058742,0.405504,3102.2,3102.0,0.001]
[1763338058956,0.1727,3103.1,3102.0,0.001]
[1763338058957,0.4259,3103.0,3102.0,0.001]
[1763338059271,0.4259,3103.0,3102.1,0.1901]
[1763338059272,0.405504,3102.9,3102.1,0.1901]
[1763338059485,0.405504,3102.7,3102.1,0.1901]
[1763338059681,0.2286404,3102.8,3102.0,0.001]
[1763338059866,0.1727,3103.1,3102.1,0.1901]
[1763338060052,0.405504,3103.0,3102.1,0.1901]
[1763338060586,1.455,3103.5,3102.2,0.476]
[1763338060884,1.455,3103.9,3102.2,0.476]
[1763338062153,0.405504,3103.8,3102.2,0.476]
[1763338062354,1.455,3103.9,3102.2,0.476]
[1763338062355,0.405504,3103.6,3102.2,0.476]
[1763338062682,0.1271,3104.0,3102.2,0.476]
[1763338063346,0.405504,3103.9,3102.2,0.476]
[1763338063551,0.831404,3103.9,3102.2,0.476]
[1763338063880,0.405504,3103.8,3102.2,0.476]
[1763338064272,0.1271,3104.0,3102.2,0.476]
[1763338064787,0.405504,3103.9,3102.2,0.476]
[1763338065089,1.456,3105.0,3102.2,0.476]
[1763338065276,0.405504,3104.6,3102.2,0.476]
[1763338065897,0.405504,3104.4,3102.2,0.476]
[1763338066452,1.6069384,3104.8,3102.2,0.476]
[1763338066453,0.405504,3104.2,3102.2,0.476]
[1763338066875,0.4259,3104.2,3102.2,0.476]
[1763338067085,1.5392448,3104.1,3102.2,0.476]
[1763338067406,0.405504,3103.9,3102.2,0.476]
[1763338067755,0.405504,3103.7,3102.2,0.476]
[1763338069584,1.456,3104.2,3102.2,0.476]
[1763338069978,0.405504,3104.1,3102.2,0.476]
[1763338070176,1.456,3104.2,3102.2,0.476]
[1763338070177,1.456,3104.2,3102.3,0.405504]
[1763338070489,1.456,3104.2,3102.4,0.476]
[1763338071992,0.002,3104.1,3103.0,0.1809]
[1763338072195,0.002,3104.1,3103.1,0.4617]
[1763338074712,0.002,3104.1,3103.0,0.1809]
[1763338075084,0.002,3104.1,3103.1,0.4617]
[1763338080228,0.002,3104.1,3104.0,0.4585]
[1763338080430,0.002,3104.5,3104.0,0.4617]
[1763338080629,0.002,3104.8,3104.4,0.1809]
[1763338080791,0.30097057,3106.4,3104.5,2.11650002]
[1763338080992,0.30089944,3107.0,3105.9,0.1809]
[1763338081193,0.405504,3106.9,3105.9,0.1809]
[1763338081393,0.30089944,3107.0,3105.9,0.1809]
[1763338081394,0.4319,3107.0,3105.9,0.1809]
[1763338081815,0.1271,3107.1,3105.9,0.1809]
[1763338082017,0.1271,3107.1,3105.9,0.6426]
[1763338082557,0.4319,3107.3,3106.0,0.4617]
[1763338082853,0.002,3107.6,3106.0,0.4617]
[1763338084613,0.4319,3107.5,3106.0,0.4617]
[1763338084813,0.002,3107.6,3106.0,0.4617]
[1763338085130,0.002,3107.6,3106.1,0.405504]
[1763338085652,0.002,3107.6,3106.2,0.4617]
[1763338086719,0.002,3107.6,3107.5,0.1809]
[1763338086956,0.002,3108.0,3107.5,0.1809]
[1763338087130,0.002,3108.0,3107.6,0.4617]
[1763338087536,0.002,3108.3,3107.6,0.4617]
[1763338087736,0.002,3108.3,3108.2,0.1809]
[1763338087931,0.002,3108.3,3108.2,0.6426]
[1763338088136,0.002,3108.3,3107.5,0.1809]
[1763338088345,0.002,3108.3,3107.6,0.4617]
[1763338088655,0.002,3108.3,3107.3,0.1809]
[1763338089358,0.002,3108.3,3107.4,0.4617]
[1763338089768,0.002,3108.0,3107.4,0.4617]
[1763338090733,0.002,3108.7,3107.5,0.405504]
[1763338090939,0.002,3108.7,3108.3,0.1809]
[1763338091163,0.002,3109.7,3108.5,0.405504]
[1763338091366,0.002,3109.7,3109.2,0.1809]
[1763338091568,0.002,3109.7,3109.2,0.6426]
[1763338092032,0.002,3109.7,3109.3,0.4617]
[1763338095965,0.002,3109.7,3108.3,0.1809]
[1763338095966,0.4459,3109.6,3108.3,0.1809]
[1763338096141,0.002,3109.7,3108.3,0.6681]
[1763338096562,0.002,3109.7,3109.6,0.1848]
[1763338097070,0.002,3109.7,3109.3,0.1848]
[1763338097250,0.002,3109.7,3108.4,0.4872]
[1763338097905,0.002,3109.7,3109.6,0.1848]
[1763338098053,0.002,3109.7,3109.0,0.4872]
[1763338098257,0.002,3109.7,3108.4,0.4872]
[1763338099191,0.405504,3109.5,3108.1,0.1848]
[1763338099386,0.002,3109.7,3108.1,0.1848]
[1763338099704,0.002,3109.7,3108.2,0.4872]
[1763338101192,0.002,3109.7,3109.6,0.187]
[1763338101705,0.002,3110.0,3109.6,0.6839]
[1763338102074,0.002,3110.0,3109.7,0.4969]
[1763338102271,0.405504,3111.2,3109.7,0.4969]
[1763338102594,0.1858504,3111.1,3109.7,0.4969]
[1763338103894,0.4519,3112.3,3111.0,0.187]
[1763338104195,1.9049,3112.3,3111.0,0.187]
[1763338104701,0.002,3112.3,3111.1,0.4969]
[1763338105257,0.002,3112.3,3111.0,0.187]
[1763338105462,0.1837,3111.1,3109.7,0.4969]
[1763338105773,1.61894765,3112.1,3109.7,0.4969]
[1763338105774,0.405504,3112.1,3109.7,0.4969]
[1763338105971,0.405504,3111.9,3109.7,0.4969]
[1763338106181,0.405504,3111.7,3109.7,0.4969]
[1763338106569,0.405504,3111.5,3109.7,0.4969]
[1763338106895,0.855404,3111.5,3109.7,0.4969]
[1763338107260,0.405504,3111.3,3109.7,0.4969]
[1763338107667,0.405504,3111.2,3109.7,0.4969]
[1763338108075,0.405504,3111.1,3109.7,0.4969]
[1763338108765,0.4499,3111.0,3109.6,0.187]
[1763338108967,0.405504,3110.9,3109.0,0.6839]
[1763338109301,0.1371,3109.1,3108.1,0.1858]
[1763338109463,0.1371,3109.4,3108.2,0.4969]
[1763338109660,0.1371,3109.4,3108.1,0.1858]
[1763338109867,0.405504,3109.2,3108.1,0.001]
[1763338110063,0.4499,3109.1,3108.1,0.001]
[1763338110327,0.1837,3108.2,3108.1,0.001]
[1763338110608,0.405504,3109.0,3108.1,0.001]
[1763338110810,0.405504,3109.3,3108.1,0.001]
[1763338111024,0.1371,3109.4,3108.1,0.001]
[1763338111025,0.405504,3108.9,3108.1,0.001]
[1763338111573,0.855404,3108.9,3108.1,0.001]
[1763338112483,0.405504,3108.7,3108.1,0.001]
[1763338113207,0.855404,3108.7,3108.1,0.001]
[1763338113614,0.587,3109.4,3108.1,0.001]
[1763338113925,0.1371,3109.4,3108.2,0.4969]
[1763338114407,0.855404,3109.3,3108.1,0.001]
[1763338114572,0.405504,3109.3,3108.2,0.4969]
[1763338114772,0.405504,3109.1,3108.1,0.001]
[1763338115290,0.405504,3108.9,3108.1,0.001]
[1763338115697,0.1837,3108.8,3108.1,0.001]
[1763338116125,0.405504,3109.3,3108.1,0.001]
[1763338116323,0.405504,3109.0,3108.1,0.001]
[1763338116633,0.38566025,3109.0,3108.1,0.001]
[1763338117537,0.4499,3109.0,3108.1,0.001]
[1763338117705,0.29972576,3108.9,3108.1,0.001]
[1763338118104,0.4499,3108.8,3108.1,0.001]
[1763338118331,0.29972576,3108.7,3108.1,0.001]
[1763338118719,0.405504,3108.5,3108.1,0.001]
[1763338119163,0.405504,3108.3,3108.1,0.001]
[1763338119828,1.453,3108.7,3108.1,0.001]
[1763338120207,0.4499,3109.0,3108.1,0.001]
[1763338120526,0.1371,3109.4,3108.1,0.4979]
[1763338120750,0.855304,3109.3,3108.1,0.4979]
[1763338120953,0.4498,3109.3,3108.1,0.4979]
[1763338121115,0.405504,3109.2,3108.1,0.4979]
[1763338121441,0.4498,3109.3,3108.1,0.4979]
[1763338121647,0.4498,3109.2,3108.1,0.001]
[1763338121856,0.405504,3109.1,3108.1,0.001]
[1763338122508,0.405504,3109.2,3108.1,0.001]
[1763338122924,0.405504,3109.0,3108.1,0.001]
[1763338123359,1.1337408,3109.3,3108.1,0.001]
[1763338123360,0.405504,3108.8,3108.1,0.001]
[1763338123714,0.405504,3108.6,3108.1,0.001]
[1763338123922,0.4498,3109.3,3108.1,0.001]
[1763338124135,0.7049112,3109.2,3108.1,0.001]
[1763338124443,0.405504,3109.2,3108.1,0.001]
[1763338124822,0.19910448,3109.1,3108.1,0.001]
[1763338125028,0.405504,3109.1,3108.1,0.001]
[1763338125232,0.855304,3109.1,3108.1,0.001]
[1763338125452,0.405504,3109.1,3108.1,0.001]
[1763338126343,0.855304,3109.1,3108.1,0.001]
[1763338126827,0.405504,3108.9,3108.1,0.001]
[1763338128490,0.405504,3108.7,3108.1,0.001]
[1763338128644,0.405504,3108.5,3108.1,0.001]
[1763338128843,0.405504,3108.3,3108.1,0.001]
[1763338129442,0.855304,3108.2,3108.1,0.001]
[1763338131588,0.405504,3108.2,3108.1,0.001]
[1763338131746,0.855304,3108.2,3108.1,0.001]
[1763338132788,0.855304,3108.2,3108.0,0.001]
[1763338132789,0.405504,3108.1,3108.0,0.001]
[1763338132975,0.855304,3108.1,3107.8,0.001]
[1763338133346,1.5392448,3107.9,3107.8,0.001]
[1763338133547,7.9392448,3107.9,3107.8,0.001]
[1763338133789,8.3890448,3107.9,3107.8,0.001]
[1763338135690,9.8430448,3107.9,3107.8,0.001]
[1763338135858,11.02627052,3107.9,3107.4,1e-08]
[1763338136057,0.405504,3107.5,3105.3,0.637]
[1763338136381,0.1564,3106.2,3105.3,0.637]
[1763338136785,0.4498,3107.4,3105.3,2.34799602]
[1763338136786,0.1564,3106.5,3105.3,2.34799602]
[1763338136987,0.4498,3107.0,3106.1,0.1949]
[1763338137287,0.1564,3106.9,3106.1,0.1949]
[1763338138069,0.1564,3107.1,3106.1,0.6449]
[1763338138269,0.1564,3107.1,3106.2,1.71099602]
[1763338138482,0.1564,3107.1,3106.3,1.94658562]
[1763338139291,0.1564,3107.1,3106.4,1.71099602]
[1763338140050,0.0992,3106.5,3106.2,1.71099602]
[1763338140253,0.1564,3107.1,3106.2,1.71099602]
[1763338140447,0.1564,3108.0,3107.0,0.474]
[1763338140653,1.9038,3109.0,3107.3,1.71099602]
[1763338140948,0.4498,3108.9,3107.7,1.71099602]
[1763338141192,0.4498,3108.9,3107.6,1.71099602]
[1763338141692,1.454,3109.0,3107.7,2.16099602]
[1763338141892,0.002,3109.3,3108.4,1.71099602]
[1763338142077,0.4518,3109.3,3108.3,1.71099602]
[1763338142250,0.002,3109.3,3108.3,2.16099602]
[1763338142875,0.002,3109.3,3108.4,1.71099602]
[1763338143096,0.002,3108.6,3108.3,2.16099602]
[1763338143298,0.002,3108.6,3108.3,2.39648562]
[1763338143771,0.002,3108.6,3108.4,2.16099602]
[1763338143976,0.002,3108.6,3108.5,1.71099602]
[1763338144413,0.002,3108.6,3108.4,1.71099602]
[1763338144622,0.002,3108.6,3108.2,1.71099602]
[1763338145227,0.002,3108.6,3108.3,2.16099602]
[1763338145524,0.002,3108.6,3108.3,1.71099602]
[1763338145686,0.002,3108.6,3108.4,0.45]
[1763338146519,0.4518,3108.6,3108.1,1.71099602]
[1763338146815,0.4518,3108.6,3107.7,1.71099602]
[1763338147112,0.1564,3107.8,3107.4,1.71099602]
[1763338147418,0.1564,3107.8,3107.1,1.71099602]
[1763338147724,0.4518,3108.6,3107.2,1.71099602]
[1763338148018,0.4518,3108.6,3107.1,1.90148562]
[1763338148217,0.4518,3108.6,3107.2,2.16099602]
[1763338149416,0.4518,3108.6,3107.2,1.71099602]
[1763338149619,0.4518,3108.6,3107.3,2.16099602]
[1763338149912,0.4518,3108.6,3107.3,0.45]
[1763338150325,0.4518,3108.6,3107.3,0.68514856]
[1763338150516,0.4518,3108.6,3107.3,2.39614458]
[1763338151019,0.4518,3108.6,3107.3,0.45]
[1763338151238,0.4518,3108.6,3107.2,1.71099602]
[1763338151627,0.405504,3108.5,3107.1,1.71099602]
[1763338152064,0.4518,3108.6,3107.1,1.71099602]
[1763338152065,0.4498,3108.4,3107.1,1.71099602]
[1763338152710,0.2556,3107.2,3106.8,1.71099602]
[1763338152926,0.2556,3107.2,3106.3,2.28389626]
[1763338152927,0.1564,3106.4,3106.3,0.001]
[1763338153126,0.4498,3107.1,3106.3,0.001]
[1763338153411,5.39135664,3108.5,3106.3,0.001]
[1763338153412,0.1564,3107.5,3106.4,0.45]
[1763338153640,0.1564,3107.5,3106.4,2.16099602]
[1763338153850,0.4498,3107.4,3106.3,1.71199602]
[1763338154067,0.4498,3107.4,3106.3,0.001]
[1763338154247,0.1564,3107.5,3106.4,0.45]
[1763338154622,0.1564,3107.5,3106.4,2.16099602]
[1763338155124,0.1564,3107.5,3106.4,1.71099602]
[1763338155327,0.1564,3107.5,3106.5,0.45]
[1763338155941,0.1564,3107.9,3107.4,0.1881]
[1763338156125,0.1564,3108.0,3107.4,0.1881]
[1763338156317,0.1564,3108.0,3107.2,0.1881]
[1763338156514,0.1564,3108.0,3107.0,1.71099602]
[1763338156717,2.00824757,3107.6,3106.6,1.71099602]
[1763338156951,0.1564,3106.7,3106.1,1.90009602]
[1763338157151,0.1564,3106.7,3106.1,0.001]
[1763338157466,0.1564,3106.7,3106.1,0.1891]
[1763338157647,0.4498,3107.5,3106.3,0.4855]
[1763338159161,0.4498,3107.5,3106.3,0.001]
[1763338159952,0.405504,3107.4,3106.3,0.001]
[1763338160565,0.4498,3107.4,3106.3,0.001]
[1763338160768,0.4498,3107.9,3106.4,0.4845]
[1763338160930,0.1564,3108.0,3106.4,0.4845]
[1763338161136,0.1645943,3108.6,3106.7,1.71099602]
[1763338161362,0.6143943,3108.6,3106.8,1.71099602]
[1763338161537,0.6143943,3108.6,3106.9,2.16819602]
[1763338162164,0.6143943,3108.6,3107.0,2.16819602]
[1763338162165,0.1645943,3108.6,3107.0,2.16819602]
[1763338162463,0.405504,3108.4,3106.8,1.71099602]
[1763338162766,2.06348307,3108.4,3106.7,1.71099602]
[1763338163069,0.405504,3108.2,3106.7,1.94978058]
[1763338163267,1.1337408,3108.0,3106.7,1.94978058]
[1763338163562,1.1337408,3108.0,3106.7,0.4572]
[1763338163743,0.1564,3107.9,3106.5,1.71099602]
[1763338163942,0.1564,3107.9,3106.8,0.4572]
[1763338164345,0.1564,3107.9,3106.8,2.16819602]
[1763338164556,0.4498,3107.8,3106.7,1.71099602]
[1763338164755,1.1337408,3107.7,3106.6,1.71099602]
[1763338164956,1.1337408,3107.5,3106.4,1.71099602]
[1763338165266,1.1337408,3107.5,3106.5,1.71099602]
[1763338166296,1.1337408,3107.5,3106.6,1.71099602]
[1763338166766,6.4,3107.6,3107.4,0.6851]
[1763338166939,6.4,3108.3,3107.5,0.9434]
[1763338167137,6.4,3108.3,3107.5,0.4862]
[1763338167138,1.1337408,3108.2,3107.5,0.4862]
[1763338167385,6.4,3108.3,3107.4,0.1989]
[1763338167680,1.1337408,3108.2,3107.4,1.90989602]
[1763338168539,1.1337408,3108.2,3107.5,1.71099602]
[1763338168738,1.1337408,3108.2,3107.4,1.90989602]
[1763338168991,1.1337408,3108.2,3107.5,1.71099602]
[1763338169132,1.1337408,3108.2,3107.5,2.16819602]
[1763338169339,1.1337408,3108.2,3107.4,0.1989]
[1763338169340,0.002,3108.6,3108.1,0.1989]
[1763338169542,0.002,3108.6,3108.4,1.72675626]
[1763338169785,0.002,3108.6,3108.5,1.72675626]
[1763338170270,0.002,3108.6,3108.5,2.18395626]
[1763338170647,0.002,3108.6,3108.5,2.40235189]
[1763338170885,0.002,3108.6,3108.5,1.08109963]
[1763338171339,0.002,3108.6,3108.5,0.862704]
[1763338173541,0.002,3108.6,3108.4,2.3015316]
[1763338173735,0.002,3108.6,3108.4,1.72700234]
[1763338174045,0.4498,3108.5,3107.7,1.72700234]
[1763338174346,0.002,3108.6,3107.9,1.72700234]
[1763338174553,0.4518,3108.6,3107.7,1.72700234]
[1763338174962,0.002,3108.6,3107.9,1.72700234]
[1763338175287,0.002,3108.6,3107.8,1.72700234]
[1763338175581,0.002,3108.6,3107.9,1.72700234]
[1763338175781,0.002,3108.6,3107.5,2.3015316]
[1763338175782,0.002,3108.6,3108.5,0.1989]
[1763338175983,0.002,3108.6,3108.2,1.72700234]
[1763338176406,0.002,3108.6,3108.3,1.72700234]
[1763338176691,0.002,3108.6,3108.3,2.18420234]
[1763338176853,0.002,3108.6,3108.3,1.72700234]
[1763338177382,0.002,3108.6,3108.4,1.72700234]
[1763338177579,0.002,3108.6,3108.4,2.40262257]
[1763338177780,0.002,3108.6,3108.5,0.4572]
[1763338178172,0.002,3108.9,3108.6,0.405504]
[1763338178362,0.002,3108.9,3108.7,0.4572]
[1763338178786,0.002,3108.9,3108.8,0.405504]
[1763338178984,0.002,3108.9,3108.8,1.21997644]
[1763338179186,0.002,3108.9,3108.8,0.862704]
[1763338179585,0.002,3108.9,3108.8,3.16594095]
[1763338179792,0.002,3108.9,3108.8,2.76043695]
[1763338179997,0.002,3108.9,3108.8,3.16598345]
[1763338180373,0.002,3108.9,3108.8,0.862704]
[1763338180579,0.002,3108.9,3108.8,1.17930234]
[1763338181096,0.002,3108.9,3108.8,3.48258179]
[1763338181614,0.002,3110.0,3108.9,0.862704]
[1763338181762,0.002,3110.0,3109.3,0.405504]
[1763338181962,1.453,3111.5,3109.7,0.405504]
[1763338182192,1.453,3111.5,3110.3,1.72469791]
[1763338182367,1.453,3111.5,3110.4,0.17246979]
[1763338182566,1.453,3111.5,3110.4,0.62966979]
[1763338183398,1.9063,3111.5,3110.1,1.92359791]
[1763338183698,0.4533,3111.4,3110.1,2.38079791]
[1763338183876,0.4533,3111.4,3110.2,0.4572]
[1763338185596,0.4533,3111.4,3109.8,0.1989]
[1763338186004,0.4533,3111.9,3110.0,2.13020191]
[1763338186315,0.4533,3111.9,3109.9,0.4572]
[1763338186316,0.15817529,3112.0,3110.2,2.13020191]
[1763338186516,0.15817529,3112.0,3110.6,0.405504]
[1763338186727,0.61147529,3112.0,3110.5,0.405504]
[1763338186918,0.4533,3112.0,3110.5,0.405504]
[1763338187211,0.4533,3112.0,3110.6,0.4572]
[1763338189195,0.1371,3112.2,3110.7,0.405504]
[1763338189596,0.4533,3112.1,3110.7,0.4572]
[1763338190833,0.4533,3112.1,3110.2,1.72469791]
[1763338191032,0.4533,3112.1,3109.9,1.72469791]
[1763338191033,0.405504,3112.0,3109.9,1.72469791]
[1763338191332,3.23287587,3112.0,3109.8,0.1989]
[1763338191549,1.5392448,3111.8,3109.9,0.4706]
[1763338191925,0.1371,3112.2,3109.9,0.4706]
[1763338192238,0.5949,3112.2,3110.0,0.405504]
[1763338192550,0.1624,3110.0,3109.2,0.1989]
[1763338192712,0.4578,3109.9,3108.2,2.19529791]
[1763338193053,0.1371,3108.5,3107.6,1.92359791]
[1763338193222,0.1371,3108.5,3107.3,0.1836]
[1763338193422,0.5949,3108.5,3107.3,0.1836]
[1763338194636,0.405504,3109.1,3107.4,0.4706]
[1763338194818,0.1371,3108.8,3107.5,0.405504]
[1763338195221,0.1371,3108.8,3107.6,0.4706]
[1763338195422,0.4578,3109.2,3107.6,0.4706]
[1763338195726,0.4578,3109.2,3107.6,2.19529791]
[1763338195938,0.4578,3109.2,3107.7,0.21952979]
[1763338196546,0.4578,3109.7,3107.8,0.4706]
[1763338197049,0.405504,3109.6,3107.8,0.4706]
[1763338198049,0.1624,3110.0,3107.8,0.4706]
[1763338198252,0.405504,3109.9,3107.8,0.4706]
[1763338198421,0.405504,3109.9,3107.9,0.24148277]
[1763338199051,0.4078,3109.8,3107.9,0.24148277]
[1763338200163,0.4078,3109.8,3108.0,0.405504]
[1763338200355,0.1624,3110.0,3108.4,0.405504]
[1763338200521,0.4078,3109.9,3108.3,1.72469791]
[1763338200855,0.4078,3109.9,3108.4,0.17246979]
[1763338201059,0.1624,3110.0,3108.5,0.405504]
[1763338201217,0.1584,3111.0,3109.9,0.1836]
[1763338201423,0.4078,3110.9,3109.1,0.6542]
[1763338201731,0.4078,3110.9,3108.6,1.72469791]
[1763338201732,0.1124,3109.0,3108.6,1.72469791]
[1763338201933,1.6042583,3110.8,3108.2,0.4706]
[1763338202157,0.405504,3110.5,3108.3,2.19529791]
[1763338202472,0.4078,3110.7,3108.4,0.405504]
[1763338202625,0.4078,3110.6,3108.4,0.876104]
[1763338202819,0.4078,3110.6,3108.6,1.72469791]
[1763338203025,0.1584,3111.0,3109.3,0.405504]
[1763338203235,0.1584,3111.0,3109.4,2.37889791]
[1763338203442,0.1584,3111.0,3109.5,1.72469791]
[1763338203736,0.1584,3111.0,3109.5,2.19529791]
[1763338203957,0.1584,3111.0,3109.6,0.4706]
[1763338204427,1.2921408,3111.0,3109.7,0.21952979]
[1763338204629,0.813304,3110.9,3109.1,0.1836]
[1763338204881,0.1584,3111.0,3109.2,0.876104]
[1763338205166,0.1584,3111.0,3109.6,1.72469791]
[1763338205370,0.4078,3110.9,3109.5,1.72469791]
[1763338205536,0.4078,3110.9,3109.2,2.19529791]
[1763338205741,0.4078,3110.9,3109.3,0.23788979]
[1763338205937,0.405504,3110.8,3109.2,1.72469791]
[1763338206137,0.405504,3110.8,3109.1,0.1836]
[1763338206329,0.405504,3110.6,3108.8,1.72469791]
[1763338206562,1.61299785,3110.5,3108.4,1.72469791]
[1763338206763,1.61299785,3110.5,3108.1,0.1836]
[1763338206764,0.405504,3110.3,3108.5,1.72469791]
[1763338207092,0.405504,3109.9,3108.1,1.90829791]
[1763338207275,0.405504,3109.7,3108.1,2.17033598]
[1763338207474,0.813304,3109.7,3108.1,2.17033598]
[1763338207794,0.813304,3109.7,3108.1,2.64093598]
[1763338207998,0.1124,3109.8,3108.2,2.19529791]
[1763338208163,0.1124,3109.8,3108.5,1.72469791]
[1763338208363,0.1124,3109.8,3108.5,0.21952979]
[1763338208700,0.4078,3109.7,3108.4,1.72469791]
[1763338208889,0.405504,3109.6,3108.0,1.72469791]
[1763338209204,0.4078,3109.5,3108.0,1.72469791]
[1763338209517,0.4078,3109.5,3108.1,0.6542]
[1763338209999,0.4078,3109.5,3108.1,0.1836]
[1763338210496,0.4078,3109.5,3108.2,0.19082979]
[1763338210899,0.4078,3109.5,3107.9,1.72469791]
[1763338211084,0.4078,3109.5,3107.7,0.4706]
[1763338211277,0.1124,3109.8,3107.9,2.13020191]
[1763338211479,0.1124,3109.8,3107.0,3.02288672]
[1763338211480,0.4078,3109.7,3108.1,1.72469791]
[1763338211684,0.405504,3109.6,3107.8,1.72469791]
[1763338211880,0.405504,3109.6,3107.9,0.17246979]
[1763338212083,0.1124,3109.8,3107.9,1.8971677]
[1763338212282,0.405504,3109.7,3108.0,0.001]
[1763338212594,0.405504,3109.7,3108.0,0.4716]
[1763338212595,0.407504,3109.7,3108.0,0.4716]
[1763338212793,0.4098,3109.7,3108.1,0.1836]
[1763338213175,0.002,3109.7,3108.2,0.4706]
[1763338213521,0.4098,3109.7,3108.2,0.4706]
[1763338214546,0.002,3109.7,3108.3,0.405504]
[1763338214700,0.002,3109.7,3108.7,2.13020191]
[1763338214883,0.002,3109.7,3108.8,0.21302019]
[1763338215090,0.002,3109.7,3108.8,0.68362019]
[1763338215334,0.002,3109.7,3108.8,2.4083181]
[1763338215491,0.002,3109.7,3108.9,0.4706]
[1763338216390,0.002,3109.7,3108.9,2.19529791]
[1763338216621,0.002,3109.7,3109.0,0.24083181]
[1763338216843,0.002,3109.7,3108.8,0.21302019]
[1763338216844,0.4078,3109.6,3108.8,1.72469791]
[1763338217003,0.4078,3109.6,3108.0,0.001]
[1763338217004,0.1371,3108.9,3108.0,0.001]
[1763338217343,0.1371,3108.9,3108.1,0.1852]
[1763338217626,0.1371,3108.9,3108.0,0.001]
[1763338217788,0.405504,3108.7,3108.0,0.001]
[1763338218137,2.00824757,3107.6,3106.4,0.001]
[1763338218286,0.1114,3106.9,3106.4,0.001]
[1763338218489,0.1114,3106.9,3106.3,0.001]
[1763338218490,0.405504,3106.8,3106.3,0.001]
[1763338218736,0.729204,3106.6,3105.6,0.001]
[1763338218899,3.802504,3106.4,3105.6,0.001]
[1763338219090,0.3988,3106.5,3105.6,0.001]
[1763338219289,0.3988,3106.4,3105.6,0.001]
[1763338220325,0.3988,3106.4,3104.2,0.4637]
[1763338220326,1.69375111,3106.1,3103.7,0.4637]
[1763338220631,1.69375111,3106.1,3102.9,2.48479721]
[1763338220632,0.1432,3103.8,3102.9,0.1852]
[1763338221413,0.1432,3104.2,3103.0,0.4576]
[1763338221889,0.1432,3104.2,3102.6,0.4576]
[1763338221890,0.3978,3104.1,3102.6,0.4576]
[1763338222131,0.1432,3104.2,3102.6,0.4576]
[1763338222315,0.3978,3104.1,3102.6,0.4576]
[1763338222517,0.3978,3104.1,3102.1,0.001]
[1763338222518,0.1114,3102.7,3102.1,0.001]
[1763338222904,0.3978,3102.6,3102.1,0.001]
[1763338223128,1.858504,3102.5,3101.8,0.001]
[1763338223431,0.405504,3102.3,3101.8,0.001]
[1763338223809,0.3958,3102.3,3101.8,0.001]
[1763338224216,0.405504,3102.2,3101.8,0.001]
[1763338224597,0.405504,3102.0,3099.6,0.4576]
[1763338224798,2.09480713,3101.4,3099.1,0.001]
[1763338224993,0.405504,3101.4,3099.1,0.001]
[1763338225257,0.405504,3101.2,3099.5,0.4576]
[1763338225416,0.405504,3101.2,3099.1,0.4586]
[1763338225629,0.405504,3101.2,3099.4,0.6382]
[1763338225832,0.3958,3101.7,3099.4,0.6382]
[1763338226133,0.3958,3101.7,3099.6,0.405504]
[1763338226431,0.405504,3101.6,3099.4,0.4576]
[1763338226800,0.3958,3101.5,3099.4,0.4576]
[1763338227105,0.3958,3101.5,3099.3,0.1806]
[1763338227106,0.405504,3101.4,3099.3,0.1806]
[1763338227329,0.2256304,3101.3,3099.4,0.4576]
[1763338227536,0.405504,3101.2,3099.3,0.1806]
[1763338227834,0.801304,3101.2,3099.3,0.1806]
[1763338228327,0.405504,3101.0,3099.3,0.1806]
[1763338228635,0.405504,3101.2,3099.4,0.4576]
[1763338228832,0.3958,3101.5,3099.5,0.405504]
[1763338229199,1.8508,3101.5,3099.7,0.405504]